Cogmind - Beta 13 @@@ ROGUE MODE // 2024.04.12 @ 16:40:58 Player: monkeman Result: Destroyed by Y-54 Guardian with Gatling Laser Performance ------------- Evolutions (0) 0 Regions Visited (3) 600 Robots Destroyed (31) 155 Value Destroyed (694) 694 Prototype IDs (0) 0 Alien Tech Used (0) 0 Bonus (-27) -27 TOTAL SCORE: 1422 Bonus ------- High Alert Combat Kills 11 Friendly Fire -38 Cogmind --------- Core Integrity 0/250 Matter 165/300 Energy 96/100 System Corruption 1% Temperature Cool (14) Movement Treading (160) Location -7/Recycling Parts ------- > --- POWER (1) -------- (None) > --- PROPULSION (2) --- Improved Treads Improved Treads > --- UTILITY (2) ------ Armored Scrap Engine > --- WEAPON (2) ------- Subdweller Machine Gun > --- INVENTORY (5) ---- Scrap Shield Grenade Launcher Flamer Peak State ------------ > --- POWER ------------ (None) > --- PROPULSION ------- Improved Treads Improved Treads > --- UTILITY ---------- Armored Scrap Engine > --- WEAPON ----------- Battle Cannon Battle Cannon > --- INVENTORY -------- Scrap Shield Subdweller Machine Gun Grenade Launcher Flamer [Rating: 26] Favorites ----------- Power Ion Engine Engine Ion Engine Propulsion Light Treads Treads Light Treads Utility Small Storage Unit Device Scrap Engine Storage Small Storage Unit Processor Signal Interpreter Protection Light Armor Plating Weapon Light Assault Rifle Ballistic Gun Light Assault Rifle Ballistic Cannon Battle Cannon Launcher Grenade Launcher Build | -11 -10 -10 -7 ------- Run | Yrd Mat Sub Rec Slots Evolved . | . . . . Power . | . . . . Propulsion . | . . . . Utility . | . . . . Weapon . | . . . . Parts Attached 31 | 6 12 11 2 Power 4 | 1 3 . . Engine 4 | 1 3 . . Core . | . . . . Reactor . | . . . . Propulsion 4 | 2 . 2 . Treads 4 | 2 . 2 . Leg . | . . . . Wheel . | . . . . Hover . | . . . . Flight . | . . . . Utility 8 | 1 4 2 1 Device 1 | . . . 1 Storage 4 | 1 3 . . Processor 1 | . 1 . . Hackware . | . . . . Protection 2 | . . 2 . Artifact . | . . . . Weapon 15 | 2 5 7 1 Energy Gun . | . . . . Energy Cannon . | . . . . Ballistic Gun 7 | 2 4 . 1 Ballistic Cannon 6 | . 1 5 . Launcher 2 | . . 2 . Special Weapon . | . . . . Impact Weapon . | . . . . Slashing Weapon . | . . . . Piercing Weapon . | . . . . Special Melee Weapon . | . . . . Unidentified Prototypes . | . . . . Parts Lost 6 | . 1 3 2 Power 2 | . 1 1 . Propulsion 2 | . . 2 . Utility . | . . . . Weapon 2 | . . . 2 Highest Loss Streak 3 | . 1 3 2 To Critical Strikes . | . . . . Average Slot Usage (%) 93 | . 95 93 71 Engine 11 | . 13 8 . Treads 28 | . 28 28 28 Storage 14 | . 15 14 1 Processor 6 | . 9 1 . Protection 4 | . . 12 . Ballistic Gun 12 | . 20 . . Ballistic Cannon 14 | . 7 26 28 Naked Turns . | . . . . Heaviest Build 34 | 10 30 34 29 Greatest Support 46 | 40 40 46 46 Greatest Overweight (x) . | . . . . Average Overweight (x) . | . . . . Largest Inventory Capacity 15 | 8 15 15 15 Average Capacity 11 | 6 9 15 5 Most Carried 15 | 6 15 15 14 Average Carried 10 | 4 8 14 5 Final Capacity 15 | 8 15 15 5 Final Carried 15 | 6 15 14 4 Scrap Engine Consumption 14 | . . . 14 Class Distribution -------------------- 100% | Mutant Dominant Class ---------------- Mutant | -10/Materials Mutant | -10/Subcaves Mutant | -7/Recycling Resources | -11 -10 -10 -7 ----------- Run | Yrd Mat Sub Rec Matter Collected 1007 | 260 257 451 39 Remotely . | . . . . Salvage Created 864 | . 582 243 39 Parts 53 | . 41 12 . Haulers Intercepted 2 | . 2 . . Recyclers Shooed 3 | . 3 . . Parts Field Recycled . | . . . . Retrieved Matter . | . . . . Parts Self-Destructed 15 | . . 15 . Prevented . | . . . . Kills | -11 -10 -10 -7 ------- Run | Yrd Mat Sub Rec Combat Hostiles Destroyed 21 | . 10 10 1 Guns 11 | . 10 . 1 Cannons 6 | . . 6 . AOE 4 | . . 4 . Classes Destroyed 10 | . 7 3 . Worker 2 | . 2 . . Hauler 2 | . 2 . . Recycler 1 | . 1 . . Operator 1 | . 1 . . Turret 2 | . . 2 . Watcher 2 | . 2 . . Swarmer 8 | . 3 5 . Grunt 9 | . 7 1 1 Sentry 1 | . . 1 . Subdweller 3 | . . 3 . Best Kill Streak 4 | . 4 3 1 Combat Bots Only 3 | . 3 3 1 Max Kills in Single Turn 2 | . 1 2 1 Gunslinging . | . . . . Exploded 2 | . . 2 . Melee . | . . . . Uniques/NPCs Destroyed . | . . . . Combat | -11 -10 -10 -7 -------- Run | Yrd Mat Sub Rec Hostile Shots Fired 173 | . 71 66 36 Missed 58 | . 21 24 13 Damage Taken 1471 | . 632 549 290 Core 254 | . 75 123 56 Absorbed by Shields . | . . . . Core Remaining (%) 100 | 100 . . . Volleys Fired 132 | . 83 42 7 Largest 2 | . 2 2 2 Hottest 78 | . 55 78 78 Shots Fired 263 | . 166 84 13 Gun 162 | . 161 . 1 Cannon 98 | . 5 81 12 Launcher 3 | . . 3 . Special . | . . . . Kinetic 260 | . 166 81 13 Thermal . | . . . . Explosive 3 | . . 3 . Electromagnetic . | . . . . Robot Hit Streak 21 | . 21 13 2 Robot Miss Streak 3 | . 3 3 2 Penetration Max . | . . . . Secondary Targets . | . . . . Shots Hit Robots 178 | . 117 55 6 Core Hits 69 | . 42 22 5 Critical Kills . | . . . . Critical Parts Destroyed . | . . . . Critical Strikes 6 | . . 5 1 Blast 6 | . . 5 1 Melee Attacks . | . . . . Impact . | . . . . Slashing . | . . . . Piercing . | . . . . Sneak Attacks . | . . . . Combat Hostiles . | . . . . Follow-up Attacks . | . . . . Damage Inflicted 2448 | . 945 1377 126 Guns 921 | . 902 . 19 Cannons 1329 | . 33 1189 107 Explosions 188 | . . 188 . Melee . | . . . . Ramming 10 | . 10 . . Kinetic 2250 | . 935 1189 126 Thermal . | . . . . Explosive 188 | . . 188 . Electromagnetic . | . . . . Impact . | . . . . Slashing . | . . . . Piercing . | . . . . Highest Corruption 1 | . 1 1 1 Average Corruption 1 | . 1 1 1 Corruption Purged . | . . . . Corruption Blocked . | . . . . Effects 16 | . 6 9 1 Message Errors 6 | . 1 5 . Heat Flow Errors 2 | . 2 . . Energy Discharges 1 | . 1 . . Parts Rejected 1 | . . 1 . Data Loss (minor) 4 | . 2 1 1 Data Loss (major) 1 | . . 1 . Misfires 1 | . . 1 . Overload Shots . | . . . . Overflow Damage 9 | . . 9 . Projectiles 9 | . . 9 . Explosions . | . . . . Melee . | . . . . Knockbacks 19 | . . 16 3 Impact . | . . . . Kinetic 19 | . . 16 3 Secondary . | . . . . Self-Inflicted Damage 28 | . . 28 . Shots 1 | . . 1 . Rammed 3 | . 3 . . Targets Rammed 4 | . 4 . . Kicked . | . . . . Crushed 1 | . 1 . . Highest Temperature 147 | . 147 . 51 Average Temperature 23 | . 23 . 24 Received Heat Transfer 543 | . 306 159 78 Siege Activations . | . . . . Robots Corrupted . | . . . . Combat Hostiles . | . . . . Parts Fried . | . . . . Impact Corruptions . | . . . . Robots Melted . | . . . . Combat Hostiles . | . . . . Parts Melted . | . . . . Heat Transferred . | . . . . Parts Sabotaged . | . . . . Parts Stolen . | . . . . Parts Stripped . | . . . . Power Chain Reactions . | . . . . Alert | -11 -10 -10 -7 ------- Run | Yrd Mat Sub Rec Peak Influence 602 | . 182 . 602 Initial 600 | . . . 600 Average 103 | . 66 . 599 Maximum Alert Level 2 | . . . 2 Low Security (%) 92 | 100 100 . . Level 1 . | . . . . Level 2 7 | . . . 100 Level 3 . | . . . . Level 4 . | . . . . Level 5 . | . . . . High Security . | . . . . Max Security . | . . . . Squads Dispatched 2 | . 2 . . Investigation 2 | . 2 . . Extermination . | . . . . Reinforcement . | . . . . Assault . | . . . . Garrison . | . . . . Intercept . | . . . . Searches Triggered . | . . . . Construction Impeded . | . . . . Haulers Reinforced . | . . . . Active Scanning Responses . | . . . . Cargo Convoy Interrupts . | . . . . Stealth | -11 -10 -10 -7 --------- Run | Yrd Mat Sub Rec Distress Signals 3 | . 1 . 2 Communications Jammed . | . . . . Distress Signals . | . . . . Times Spotted 91 | . 14 71 6 Peak Tracking Total 6 | . 4 3 6 Tactical Retreats 7 | . . 7 . Traps | -11 -10 -10 -7 ------- Run | Yrd Mat Sub Rec Traps Triggered 2 | . 2 . . Indirectly . | . . . . Trap Hack Attempts . | . . . . Triggered . | . . . . Disarmed . | . . . . Reprogrammed . | . . . . Reused . | . . . . Traps Extracted . | . . . . Installed . | . . . . Triggered . | . . . . Machines | -11 -10 -10 -7 ---------- Run | Yrd Mat Sub Rec Machines Disabled 2 | . . 2 . Max in Single Turn 1 | . . 1 . Machines Repaired . | . . . . Machines Dismantled . | . . . . Machines Sabotaged . | . . . . Overloaded Fab Kills . | . . . . Hacking | -11 -10 -10 -7 --------- Run | Yrd Mat Sub Rec Machines Accessed 9 | . 8 . 1 Terminals 7 | . 7 . . Fabricators . | . . . . Repair Stations . | . . . . Recycling Units 2 | . 1 . 1 Scanalyzers . | . . . . Garrison Access . | . . . . Total Hacks 23 | . 20 . 3 Successful 8 | . 7 . 1 Failed 15 | . 13 . 2 Catastrophic 3 | . 2 . 1 Database Lockouts . | . . . . Manual 11 | . 11 . . Terminals 19 | . 19 . . Fabricators . | . . . . Repair Stations . | . . . . Recycling Units 4 | . 1 . 3 Scanalyzers . | . . . . Garrison Access . | . . . . Terminal Hacks 4 | . 4 . . Part Schematic 1 | . 1 . . Robot Analysis 2 | . 2 . . Locate Traps 1 | . 1 . . Fabricator Hacks . | . . . . Repair Station Hacks . | . . . . Recycling Unit Hacks 2 | . 1 . 1 Report Inventory 2 | . 1 . 1 Scanalyzer . | . . . . Garrison Access Hacks . | . . . . Unauthorized Hacks 2 | . 2 . . Terminals 2 | . 2 . . Assimilate 1 | . 1 . . Botnet 1 | . 1 . . Fabricators . | . . . . Repair Stations . | . . . . Recycling Units . | . . . . Scanalyzers . | . . . . Garrison Access . | . . . . Data Cores Recovered . | . . . . Used . | . . . . Hacking Detections 8 | . 7 . 1 Full Trace Events 2 | . 2 . . Feedback Events . | . . . . Feedback Blocked . | . . . . Robot Schematics Acquired . | . . . . Robots Built . | . . . . Authchips . | . . . . Time . | . . . . Total Robot Build Rating . | . . . . Part Schematics Acquired 1 | . 1 . . Parts Built . | . . . . Authchips . | . . . . Time . | . . . . Total Part Build Rating . | . . . . Parts Repaired . | . . . . Time . | . . . . Parts Recycled . | . . . . Recycled Matter . | . . . . Retrieved Matter . | . . . . Retrieved Components . | . . . . Parts Scanalyzed . | . . . . Part Schematics Acquired . | . . . . Parts Damaged . | . . . . Bothacking | -11 -10 -10 -7 ------------ Run | Yrd Mat Sub Rec Used RIF Installer . | . . . . Robots Hacked . | . . . . Non-combat . | . . . . Combat . | . . . . Robot Hacks Applied . | . . . . Relay Couplers Released . | . . . . Fabnet Peak Effective % . | . . . . Robots Rewired . | . . . . Allies Hacked . | . . . . Hacks Repelled . | . . . . Allies | -11 -10 -10 -7 -------- Run | Yrd Mat Sub Rec Total Allies 1 | . 1 . . Largest Group 1 | . 1 . . Highest-Rated Group 10 | . 10 . . Highest-Rated Ally 10 | . 10 . . Total Orders . | . . . . Ally Attacks . | . . . . Total Damage . | . . . . Kills . | . . . . Allies Corrupted . | . . . . Allies Melted . | . . . . Intel | -11 -10 -10 -7 ------- Run | Yrd Mat Sub Rec Robot Analysis Total 2 | . 2 . . Derelict Logs Recovered . | . . . . Drone Launches . | . . . . Drone Recoveries . | . . . . Exploration | -11 -10 -10 -7 ------------- Run | Yrd Mat Sub Rec Turns Passed 2587 | 82 1524 853 128 Spaces Moved 1294 | 46 757 430 61 Core 5 | 5 . . . Treads 1289 | 41 757 430 61 Legs . | . . . . Wheels . | . . . . Hover . | . . . . Flight . | . . . . Fastest Speed 50 | 50 160 160 160 Average Speed 159 | 148 160 160 160 Slowest Speed 160 | 160 160 160 160 Overloaded Moves . | . . . . Propulsion Burnouts . | . . . . Robots Hopped . | . . . . Cave-ins Triggered . | . . . . Exploration Rate (%) 37 | 4 98 34 12 Regions Visited 3 Branch Regions 2 Pre-discovered Areas . | . . . . Known Exits Taken 1 | . 1 . . Unknown Exits Taken 2 | 1 . 1 . Scrap Searched 2 | . . 2 . Spaces Dug . | . . . . Terrain Destroyed 22 | . . 20 2 Melee . | . . . . Projectile 5 | . . 3 2 AOE 17 | . . 17 . Terrain Rammed . | . . . . Walls Destroyed . | . . . . Machines Disabled . | . . . . Actions | -11 -10 -10 -7 --------- Run | Yrd Mat Sub Rec Total 1594 | 57 939 513 85 Wait 65 | . 49 14 2 Move 1291 | 45 756 429 61 Hop . | . . . . Pick Up 33 | 6 17 9 1 Fast Attach 12 | 6 4 1 1 Attach 4 | . . 3 1 Detach . | . . . . Swap 15 | . 8 7 . Drop 38 | . 18 8 12 Fire 132 | . 83 42 7 Melee . | . . . . Ram . | . . . . Kick . | . . . . Crush 4 | . 4 . . Escape Stasis . | . . . . Rewire . | . . . . Trap . | . . . . Miscellaneous . | . . . . Route ------- -11/Scrapyard -10/Materials (discovered 6 exits: *Mat x3 / *Min x2 / *Sub) -10/Subcaves -7/Recycling History --------- Turn | Location | Event 12 | -11/Scrapyard | Discovered new exit (range 14) 83 | -11/Scrapyard | Entered Materials 304 | -10/Materials | Build established: Mutant 627 | -10/Materials | Discovered new exit (range 8) 650 | -10/Materials | Identified exit to Mines 820 | -10/Materials | Discovered new exit (range 5) 1095 | -10/Materials | Discovered new exit (range 9) 1126 | -10/Materials | Identified exit to Materials 1202 | -10/Materials | Discovered exit to Mines (range 3) 1354 | -10/Materials | Discovered exit to Materials (range 16) 1600 | -10/Materials | Discovered new exit (range 5) 1605 | -10/Materials | Identified exit to Subcaves 1607 | -10/Materials | Entered Subcaves 1800 | -10/Subcaves | Shifting Twisted Machinery released Battle Cannon 1824 | -10/Subcaves | Shifting Twisted Machinery released Flamer 2098 | -10/Subcaves | Core integrity fell below 50% 2176 | -10/Subcaves | Lost 3 parts (1p2n) 2249 | -10/Subcaves | Discovered new exit (range 9) 2460 | -10/Subcaves | Entered Recycling 2468 | -7/Recycling | Found Scrap Engine 2574 | -7/Recycling | Core integrity fell below 20% 2588 | -7/Recycling | Destroyed by Y-54 Guardian with Gatling Laser Last Messages --------------- 02504_ R-06 Scavenger inserts Sub. Optics into recycling unit. 02507_ R-06 Scavenger inserts Shield Generator into recycling unit. 02534_ Scrap Engine envelopes itself in armor. 02557_ I-36 Angel springs to life. 02557_ I-36 Angel sends out distress signal. 02557_ I-36 Angel springs to life. 02570_ L-41 Fighter Carbon-fiber Leg blasted off. 02570_ L-41 Fighter knocked back. 02572_ I-36 Angel sends out distress signal. 02576_ L-41 Fighter knocked back. 02581_ L-41 Fighter destroyed. 02582_ Battle Cannon destroyed. 02582_ R-06 Scavenger collects Carbon-fiber Leg. 02585_ Arm. Scrap Engine consumes Core Shielding. 02586_ G-47 Trooper destroyed. 02588_ Acquired 39 matter. Map ----- +----------------------------------------------------+ | ??????????????????????????????????????? | | ??????????????????????????????????????? | | ??????????????????????????????????????? | | ??????????????????????????????????????? | | ??????????????????????????????????????? | | ??????????????????????????????????????? | | ??????????????????????????????????????? | | ??????????????????????????????????????? | | ??????????????????????????????????????? | | ??????????????????????????????????????? | | ??????????????????????????????????????? | | ??????????????????????????????????????? | | ??????????????????????????????????????? | | ????? ??????????????????????????????? | | ????# #?????????????????????????????? | | ????# #?##########??????????????????? | | ????# #?# rb #??????????????????? | | ????# #?# #??????????????????? | | ??### #?#! k* ! #??????????????????? | | ??#%% ###b h/ #??????????????????? | | ???% T"#! #??????????????????? | | ????% "?# Y [ #??????????????????? | | ????# ###g =#??????????????????? | | ????# ## !l ! ???????????????????? | | ????# #?# d% ?????????????????????? | | ????# ####;/@########## #?????????? | | ??### Y #?????????? | | ??# % r #?????????? | | ??# %%% #?????????? | | ??# #####+######## ||####?????????? | | ??### ### #????|#????????????? | | ????# ""# """"" #??????????????????? | | ????# Y"# """"" #??????????????????? | | ????# ""# """"" #??????????????????? | | ????# ### #??????????????????? | | ????# #?# """"" #??????????????????? | | ????#####?# """"" #??????????????????? | | ??????????# """"" #??????????????????? | | ??????????# #??????????????????? | | ??????????##########??????????????????? | | ??????????????????????????????????????? | | ??????????????????????????????????????? | | ??????????????????????????????????????? | | ??????????????????????????????????????? | | | | | | | | | | | | | +----------------------------------------------------+ Best States ------------- Heat Dissipation 25 Energy Generation 10 Energy Capacity 250 Matter Stores 300 Matter Capacity 300 Sight Range 16 Terrain Scan Density 10 Armor Coverage 150 Evasion (%) 40 Recoil Reduction 2 Item Schematics ----------------- Huge Storage Unit | -10/Materials | Hacked Robot Schematics ------------------ None Fabricated ------------ Nothing Alien Tech Used ----------------- None Achievements -------------- None Challenges ------------ None Game ------ Seed GunWeightBarrier Manual? 0 Play Time 00:20:51 Cumulative 26.2 hours Start 2024.04.12 @ 16:22:01 End 2024.04.12 @ 16:40:58 Sessions 1 Manual Loads 0 Difficulty Rogue Special Mode None Game No. 30 Rogue 30 Adventurer 0 Explorer 0 Win Type - Total 1 Types 1/0/0/0/0/0/0/0/0 Lore% 15 Gallery% 31 Achievement% 25 Wizard Run 0 Options --------- Layout 1 ASCII 0 Keyboard 0 Movement Mouse Keybinds 0 Fullscreen 1 Font 24/Smallcaps Map View 50x35 Zoom Use 0% Tactical HUD 1 Map Filters NONE Filters NONE Steam 1 RUN: 61964469-0b0c-45a0-b8c6-da44c5512d98